Workbook

Sheet Kjørelogg
B1: KJØRELOGG
C11: REFUNDERBART | E11: TOTALT
C12: KM | E12: REFUSJON
C17: 2012-05-01 | E17: 2012-05-10
C19: PERIODE | E19: PERIODE
C20: START | E20: SLUTT
C26: 54 | E26: 9,800
C28: REFUSJON | E28: FORRIGE DRIVSTOFF
C29: kr/km | E29: KILOMETERTELLER

Sheet Loggdata
B1: KJØRELOGG
B5: DATO | C5: AKTIVITET | D5: KILOM.TELLER 1 | E5: STED | F5: KILOM.TELLER 2 | G5: BESTEMMELSESSTED | H5: REFUNDER | I5: LITER | J5: KOSTNAD | K5: KM | L5: MPG | M5: KR/KM | N5: NOTATER
B6: 2012-05-01 | C6: Reise | D6: 10,123 | E6: Chevron - Hovedg | F6: 10,130 | I6: 15.56 | J6: kr 64.11 | K6: =kilometer -> 7 | L6: =IF(OR(LEN(data[[#This Row],[KILOM.TELLER 2]]),data[[#This Row],[KILOM.TELLER 1]]=""),"",IFERROR(data[[#This Row],[KM]]/data[[#This Row],[LITER]],"")) ->  | M6: =IF(data[[#This Row],[MPG]]="","",100*data[[#This Row],[KOSTNAD]]/data[[#This Row],[KM]]) -> 
B7: 2012-05-01 | C7: Reise | D7: 10,130 | E7: Kontor | F7: 10,200 | G7: Bringebærgaten | H7: Ja | K7: =kilometer -> 70 | L7: =IF(OR(LEN(data[[#This Row],[KILOM.TELLER 2]]),data[[#This Row],[KILOM.TELLER 1]]=""),"",IFERROR(data[[#This Row],[KM]]/data[[#This Row],[LITER]],"")) ->  | M7: =IF(data[[#This Row],[MPG]]="","",100*data[[#This Row],[KOSTNAD]]/data[[#This Row],[KM]]) -> 
B8: 2012-05-01 | C8: Reise | D8: 10,200 | E8: Vitro | F8: 10,285 | G8: Kontor | H8: Ja | K8: =kilometer -> 85 | L8: =IF(OR(LEN(data[[#This Row],[KILOM.TELLER 2]]),data[[#This Row],[KILOM.TELLER 1]]=""),"",IFERROR(data[[#This Row],[KM]]/data[[#This Row],[LITER]],"")) ->  | M8: =IF(data[[#This Row],[MPG]]="","",100*data[[#This Row],[KOSTNAD]]/data[[#This Row],[KM]]) -> 
B9: 2012-05-02 | C9: Reise | D9: 10,285 | E9: Kontor | F9: 10,450 | G9: Nasena | H9: Ja | K9: =kilometer -> 165 | L9: =IF(OR(LEN(data[[#This Row],[KILOM.TELLER 2]]),data[[#This Row],[KILOM.TELLER 1]]=""),"",IFERROR(data[[#This Row],[KM]]/data[[#This Row],[LITER]],"")) ->  | M9: =IF(data[[#This Row],[MPG]]="","",100*data[[#This Row],[KOSTNAD]]/data[[#This Row],[KM]]) -> 
B10: 2012-05-02 | C10: Drivstoff | D10: 10,450 | E10: Shell | I10: 11.20 | J10: kr 55.42 | K10: =kilometer -> 650 | L10: =IF(OR(LEN(data[[#This Row],[KILOM.TELLER 2]]),data[[#This Row],[KILOM.TELLER 1]]=""),"",IFERROR(data[[#This Row],[KM]]/data[[#This Row],[LITER]],"")) -> 58.0 | M10: =IF(data[[#This Row],[MPG]]="","",100*data[[#This Row],[KOSTNAD]]/data[[#This Row],[KM]]) -> 8.5
B11: 2012-05-02 | C11: Reise | D11: 10,500 | E11: Nasena | F11: 10,518 | G11: Kontor | H11: Ja | K11: =kilometer -> 18 | L11: =IF(OR(LEN(data[[#This Row],[KILOM.TELLER 2]]),data[[#This Row],[KILOM.TELLER 1]]=""),"",IFERROR(data[[#This Row],[KM]]/data[[#This Row],[LITER]],"")) ->  | M11: =IF(data[[#This Row],[MPG]]="","",100*data[[#This Row],[KOSTNAD]]/data[[#This Row],[KM]]) -> 
B12: 2012-05-03 | C12: Reise | D12: 10,518 | E12: Kontor | F12: 10,745 | G12: Kontor | H12: Ja | K12: =kilometer -> 227 | L12: =IF(OR(LEN(data[[#This Row],[KILOM.TELLER 2]]),data[[#This Row],[KILOM.TELLER 1]]=""),"",IFERROR(data[[#This Row],[KM]]/data[[#This Row],[LITER]],"")) ->  | M12: =IF(data[[#This Row],[MPG]]="","",100*data[[#This Row],[KOSTNAD]]/data[[#This Row],[KM]]) -> 
B13: 2012-05-04 | C13: Drivstoff | D13: 10,745 | E13: Chevron - Hovedg | I13: 16.60 | J13: kr 69.24 | K13: =kilometer -> 295 | L13: =IF(OR(LEN(data[[#This Row],[KILOM.TELLER 2]]),data[[#This Row],[KILOM.TELLER 1]]=""),"",IFERROR(data[[#This Row],[KM]]/data[[#This Row],[LITER]],"")) -> 17.8 | M13: =IF(data[[#This Row],[MPG]]="","",100*data[[#This Row],[KOSTNAD]]/data[[#This Row],[KM]]) -> 23.5
B14: 2012-05-04 | C14: Reise | D14: 10,745 | E14: Kontor | F14: 10,800 | G14: Bergen | H14: Ja | K14: =kilometer -> 55 | L14: =IF(OR(LEN(data[[#This Row],[KILOM.TELLER 2]]),data[[#This Row],[KILOM.TELLER 1]]=""),"",IFERROR(data[[#This Row],[KM]]/data[[#This Row],[LITER]],"")) ->  | M14: =IF(data[[#This Row],[MPG]]="","",100*data[[#This Row],[KOSTNAD]]/data[[#This Row],[KM]]) -> 
B15: 2012-05-04 | C15: Reise | D15: 10,800 | E15: Bergen | F15: 10,875 | G15: Kontor | H15: Ja | K15: =kilometer -> 75 | L15: =IF(OR(LEN(data[[#This Row],[KILOM.TELLER 2]]),data[[#This Row],[KILOM.TELLER 1]]=""),"",IFERROR(data[[#This Row],[KM]]/data[[#This Row],[LITER]],"")) ->  | M15: =IF(data[[#This Row],[MPG]]="","",100*data[[#This Row],[KOSTNAD]]/data[[#This Row],[KM]]) -> 
B16: 2012-05-07 | C16: Reise | D16: 10,875 | E16: Kontor | F16: 10,921 | G16: Bringebærgaten | H16: Ja | K16: =kilometer -> 46 | L16: =IF(OR(LEN(data[[#This Row],[KILOM.TELLER 2]]),data[[#This Row],[KILOM.TELLER 1]]=""),"",IFERROR(data[[#This Row],[KM]]/data[[#This Row],[LITER]],"")) ->  | M16: =IF(data[[#This Row],[MPG]]="","",100*data[[#This Row],[KOSTNAD]]/data[[#This Row],[KM]]) -> 
B17: 2012-05-07 | C17: Reise | D17: 10,921 | E17: Vitro | F17: 10,969 | G17: Kontor | H17: Ja | K17: =kilometer -> 48 | L17: =IF(OR(LEN(data[[#This Row],[KILOM.TELLER 2]]),data[[#This Row],[KILOM.TELLER 1]]=""),"",IFERROR(data[[#This Row],[KM]]/data[[#This Row],[LITER]],"")) ->  | M17: =IF(data[[#This Row],[MPG]]="","",100*data[[#This Row],[KOSTNAD]]/data[[#This Row],[KM]]) -> 
B18: 2012-05-09 | C18: Reise | D18: 10,969 | E18: Kontor | F18: 11,000 | G18: Strandstedet | H18: Ja | K18: =kilometer -> 31 | L18: =IF(OR(LEN(data[[#This Row],[KILOM.TELLER 2]]),data[[#This Row],[KILOM.TELLER 1]]=""),"",IFERROR(data[[#This Row],[KM]]/data[[#This Row],[LITER]],"")) ->  | M18: =IF(data[[#This Row],[MPG]]="","",100*data[[#This Row],[KOSTNAD]]/data[[#This Row],[KM]]) -> 
B19: 2012-05-09 | C19: Reise | D19: 11,000 | E19: Strandstedet | F19: 11,100 | G19: Hjem | H19: Nei | K19: =kilometer -> 100 | L19: =IF(OR(LEN(data[[#This Row],[KILOM.TELLER 2]]),data[[#This Row],[KILOM.TELLER 1]]=""),"",IFERROR(data[[#This Row],[KM]]/data[[#This Row],[LITER]],"")) ->  | M19: =IF(data[[#This Row],[MPG]]="","",100*data[[#This Row],[KOSTNAD]]/data[[#This Row],[KM]]) -> 

Sheet Beregninger (hidden)
A1: *** Dette arket må være skjult ***
I6: =OFFSET(I9,,andreAkse="Drivstoffkostnad") -> kr/km
M7: 2
H8: Reise | I8: Drivstoff | J8: Drivstoff | L8: Andre akse: | M8: =REPT("MPG",M7=1)&REPT("Drivstoffkostnad",M7=2) -> Drivstoffkostnad
H9: Km kjørt | I9: MPG | J9: kr/km
C10: Kjøregodtgjørelse | D10: =SUMIFS(data[KM],data[REFUNDER],"Ja",data[DATO],">="&periodeStart,data[DATO],"<="&periodeSlutt) -> 820 | F10: 1 | G10: =periodeStart -> 2012-05-01 | H10: =SUMIFS(data[KM],data[DATO],G10,data[AKTIVITET],$H$8) -> 162 | I10: =IFERROR(AVERAGEIFS(data[MPG],data[DATO],G10,data[AKTIVITET],$I$8),NA()) ->  | J10: =IFERROR(AVERAGEIFS(data[KR/KM],data[DATO],G10,data[AKTIVITET],$J$8),NA()) -> 
C11: Refusjon totalt: | D11: =D10*GodtgjørelsePerKm/100 -> kr 442.80 | F11: 2 | G11: =G10+1 -> 2012-05-02 | H11: =SUMIFS(data[KM],data[DATO],G11,data[AKTIVITET],$H$8) -> 183 | I11: =IFERROR(AVERAGEIFS(data[MPG],data[DATO],G11,data[AKTIVITET],$I$8),NA()) -> 58.0 | J11: =IFERROR(AVERAGEIFS(data[KR/KM],data[DATO],G11,data[AKTIVITET],$J$8),NA()) -> 8.5
F12: 3 | G12: 2012-05-03 | H12: =SUMIFS(data[KM],data[DATO],G12,data[AKTIVITET],$H$8) -> 227 | I12: =IFERROR(AVERAGEIFS(data[MPG],data[DATO],G12,data[AKTIVITET],$I$8),NA()) ->  | J12: =IFERROR(AVERAGEIFS(data[KR/KM],data[DATO],G12,data[AKTIVITET],$J$8),NA()) -> 
F13: 4 | G13: 2012-05-04 | H13: =SUMIFS(data[KM],data[DATO],G13,data[AKTIVITET],$H$8) -> 130 | I13: =IFERROR(AVERAGEIFS(data[MPG],data[DATO],G13,data[AKTIVITET],$I$8),NA()) -> 17.8 | J13: =IFERROR(AVERAGEIFS(data[KR/KM],data[DATO],G13,data[AKTIVITET],$J$8),NA()) -> 23.5
F14: 5 | G14: 2012-05-05 | H14: =SUMIFS(data[KM],data[DATO],G14,data[AKTIVITET],$H$8) -> 0 | I14: =IFERROR(AVERAGEIFS(data[MPG],data[DATO],G14,data[AKTIVITET],$I$8),NA()) ->  | J14: =IFERROR(AVERAGEIFS(data[KR/KM],data[DATO],G14,data[AKTIVITET],$J$8),NA()) -> 
F15: 6 | G15: 2012-05-06 | H15: =SUMIFS(data[KM],data[DATO],G15,data[AKTIVITET],$H$8) -> 0 | I15: =IFERROR(AVERAGEIFS(data[MPG],data[DATO],G15,data[AKTIVITET],$I$8),NA()) ->  | J15: =IFERROR(AVERAGEIFS(data[KR/KM],data[DATO],G15,data[AKTIVITET],$J$8),NA()) -> 
F16: 7 | G16: 2012-05-07 | H16: =SUMIFS(data[KM],data[DATO],G16,data[AKTIVITET],$H$8) -> 94 | I16: =IFERROR(AVERAGEIFS(data[MPG],data[DATO],G16,data[AKTIVITET],$I$8),NA()) ->  | J16: =IFERROR(AVERAGEIFS(data[KR/KM],data[DATO],G16,data[AKTIVITET],$J$8),NA()) -> 
F17: 8 | G17: 2012-05-08 | H17: =SUMIFS(data[KM],data[DATO],G17,data[AKTIVITET],$H$8) -> 0 | I17: =IFERROR(AVERAGEIFS(data[MPG],data[DATO],G17,data[AKTIVITET],$I$8),NA()) ->  | J17: =IFERROR(AVERAGEIFS(data[KR/KM],data[DATO],G17,data[AKTIVITET],$J$8),NA()) -> 
F18: 9 | G18: 2012-05-09 | H18: =SUMIFS(data[KM],data[DATO],G18,data[AKTIVITET],$H$8) -> 131 | I18: =IFERROR(AVERAGEIFS(data[MPG],data[DATO],G18,data[AKTIVITET],$I$8),NA()) ->  | J18: =IFERROR(AVERAGEIFS(data[KR/KM],data[DATO],G18,data[AKTIVITET],$J$8),NA()) -> 
F19: 10 | G19: 2012-05-10 | H19: =SUMIFS(data[KM],data[DATO],G19,data[AKTIVITET],$H$8) -> 0 | I19: =IFERROR(AVERAGEIFS(data[MPG],data[DATO],G19,data[AKTIVITET],$I$8),NA()) ->  | J19: =IFERROR(AVERAGEIFS(data[KR/KM],data[DATO],G19,data[AKTIVITET],$J$8),NA()) -> 
F20: 11 | G20: 2012-05-11 | H20: =SUMIFS(data[KM],data[DATO],G20,data[AKTIVITET],$H$8) -> 0 | I20: =IFERROR(AVERAGEIFS(data[MPG],data[DATO],G20,data[AKTIVITET],$I$8),NA()) ->  | J20: =IFERROR(AVERAGEIFS(data[KR/KM],data[DATO],G20,data[AKTIVITET],$J$8),NA()) -> 
F21: 12 | G21: 2012-05-12 | H21: =SUMIFS(data[KM],data[DATO],G21,data[AKTIVITET],$H$8) -> 0 | I21: =IFERROR(AVERAGEIFS(data[MPG],data[DATO],G21,data[AKTIVITET],$I$8),NA()) ->  | J21: =IFERROR(AVERAGEIFS(data[KR/KM],data[DATO],G21,data[AKTIVITET],$J$8),NA()) -> 
F22: 13 | G22: 2012-05-13 | H22: =SUMIFS(data[KM],data[DATO],G22,data[AKTIVITET],$H$8) -> 0 | I22: =IFERROR(AVERAGEIFS(data[MPG],data[DATO],G22,data[AKTIVITET],$I$8),NA()) ->  | J22: =IFERROR(AVERAGEIFS(data[KR/KM],data[DATO],G22,data[AKTIVITET],$J$8),NA()) -> 
F23: 14 | G23: 2012-05-14 | H23: =SUMIFS(data[KM],data[DATO],G23,data[AKTIVITET],$H$8) -> 0 | I23: =IFERROR(AVERAGEIFS(data[MPG],data[DATO],G23,data[AKTIVITET],$I$8),NA()) ->  | J23: =IFERROR(AVERAGEIFS(data[KR/KM],data[DATO],G23,data[AKTIVITET],$J$8),NA()) -> 
F24: 15 | G24: 2012-05-15 | H24: =SUMIFS(data[KM],data[DATO],G24,data[AKTIVITET],$H$8) -> 0 | I24: =IFERROR(AVERAGEIFS(data[MPG],data[DATO],G24,data[AKTIVITET],$I$8),NA()) ->  | J24: =IFERROR(AVERAGEIFS(data[KR/KM],data[DATO],G24,data[AKTIVITET],$J$8),NA()) -> 
F25: 16 | G25: 2012-05-16 | H25: =SUMIFS(data[KM],data[DATO],G25,data[AKTIVITET],$H$8) -> 0 | I25: =IFERROR(AVERAGEIFS(data[MPG],data[DATO],G25,data[AKTIVITET],$I$8),NA()) ->  | J25: =IFERROR(AVERAGEIFS(data[KR/KM],data[DATO],G25,data[AKTIVITET],$J$8),NA()) -> 
F26: 17 | G26: 2012-05-17 | H26: =SUMIFS(data[KM],data[DATO],G26,data[AKTIVITET],$H$8) -> 0 | I26: =IFERROR(AVERAGEIFS(data[MPG],data[DATO],G26,data[AKTIVITET],$I$8),NA()) ->  | J26: =IFERROR(AVERAGEIFS(data[KR/KM],data[DATO],G26,data[AKTIVITET],$J$8),NA()) -> 
F27: 18 | G27: 2012-05-18 | H27: =SUMIFS(data[KM],data[DATO],G27,data[AKTIVITET],$H$8) -> 0 | I27: =IFERROR(AVERAGEIFS(data[MPG],data[DATO],G27,data[AKTIVITET],$I$8),NA()) ->  | J27: =IFERROR(AVERAGEIFS(data[KR/KM],data[DATO],G27,data[AKTIVITET],$J$8),NA()) -> 
F28: 19 | G28: 2012-05-19 | H28: =SUMIFS(data[KM],data[DATO],G28,data[AKTIVITET],$H$8) -> 0 | I28: =IFERROR(AVERAGEIFS(data[MPG],data[DATO],G28,data[AKTIVITET],$I$8),NA()) ->  | J28: =IFERROR(AVERAGEIFS(data[KR/KM],data[DATO],G28,data[AKTIVITET],$J$8),NA()) -> 
F29: 20 | G29: 2012-05-20 | H29: =SUMIFS(data[KM],data[DATO],G29,data[AKTIVITET],$H$8) -> 0 | I29: =IFERROR(AVERAGEIFS(data[MPG],data[DATO],G29,data[AKTIVITET],$I$8),NA()) ->  | J29: =IFERROR(AVERAGEIFS(data[KR/KM],data[DATO],G29,data[AKTIVITET],$J$8),NA()) -> 
F30: 21 | G30: 2012-05-21 | H30: =SUMIFS(data[KM],data[DATO],G30,data[AKTIVITET],$H$8) -> 0 | I30: =IFERROR(AVERAGEIFS(data[MPG],data[DATO],G30,data[AKTIVITET],$I$8),NA()) ->  | J30: =IFERROR(AVERAGEIFS(data[KR/KM],data[DATO],G30,data[AKTIVITET],$J$8),NA()) -> 
F31: 22 | G31: 2012-05-22 | H31: =SUMIFS(data[KM],data[DATO],G31,data[AKTIVITET],$H$8) -> 0 | I31: =IFERROR(AVERAGEIFS(data[MPG],data[DATO],G31,data[AKTIVITET],$I$8),NA()) ->  | J31: =IFERROR(AVERAGEIFS(data[KR/KM],data[DATO],G31,data[AKTIVITET],$J$8),NA()) -> 
F32: 23 | G32: 2012-05-23 | H32: =SUMIFS(data[KM],data[DATO],G32,data[AKTIVITET],$H$8) -> 0 | I32: =IFERROR(AVERAGEIFS(data[MPG],data[DATO],G32,data[AKTIVITET],$I$8),NA()) ->  | J32: =IFERROR(AVERAGEIFS(data[KR/KM],data[DATO],G32,data[AKTIVITET],$J$8),NA()) -> 
F33: 24 | G33: 2012-05-24 | H33: =SUMIFS(data[KM],data[DATO],G33,data[AKTIVITET],$H$8) -> 0 | I33: =IFERROR(AVERAGEIFS(data[MPG],data[DATO],G33,data[AKTIVITET],$I$8),NA()) ->  | J33: =IFERROR(AVERAGEIFS(data[KR/KM],data[DATO],G33,data[AKTIVITET],$J$8),NA()) -> 
F34: 25 | G34: 2012-05-25 | H34: =SUMIFS(data[KM],data[DATO],G34,data[AKTIVITET],$H$8) -> 0 | I34: =IFERROR(AVERAGEIFS(data[MPG],data[DATO],G34,data[AKTIVITET],$I$8),NA()) ->  | J34: =IFERROR(AVERAGEIFS(data[KR/KM],data[DATO],G34,data[AKTIVITET],$J$8),NA()) -> 
F35: 26 | G35: 2012-05-26 | H35: =SUMIFS(data[KM],data[DATO],G35,data[AKTIVITET],$H$8) -> 0 | I35: =IFERROR(AVERAGEIFS(data[MPG],data[DATO],G35,data[AKTIVITET],$I$8),NA()) ->  | J35: =IFERROR(AVERAGEIFS(data[KR/KM],data[DATO],G35,data[AKTIVITET],$J$8),NA()) -> 
F36: 27 | G36: 2012-05-27 | H36: =SUMIFS(data[KM],data[DATO],G36,data[AKTIVITET],$H$8) -> 0 | I36: =IFERROR(AVERAGEIFS(data[MPG],data[DATO],G36,data[AKTIVITET],$I$8),NA()) ->  | J36: =IFERROR(AVERAGEIFS(data[KR/KM],data[DATO],G36,data[AKTIVITET],$J$8),NA()) -> 
F37: 28 | G37: 2012-05-28 | H37: =SUMIFS(data[KM],data[DATO],G37,data[AKTIVITET],$H$8) -> 0 | I37: =IFERROR(AVERAGEIFS(data[MPG],data[DATO],G37,data[AKTIVITET],$I$8),NA()) ->  | J37: =IFERROR(AVERAGEIFS(data[KR/KM],data[DATO],G37,data[AKTIVITET],$J$8),NA()) -> 
F38: 29 | G38: 2012-05-29 | H38: =SUMIFS(data[KM],data[DATO],G38,data[AKTIVITET],$H$8) -> 0 | I38: =IFERROR(AVERAGEIFS(data[MPG],data[DATO],G38,data[AKTIVITET],$I$8),NA()) ->  | J38: =IFERROR(AVERAGEIFS(data[KR/KM],data[DATO],G38,data[AKTIVITET],$J$8),NA()) -> 
F39: 30 | G39: 2012-05-30 | H39: =SUMIFS(data[KM],data[DATO],G39,data[AKTIVITET],$H$8) -> 0 | I39: =IFERROR(AVERAGEIFS(data[MPG],data[DATO],G39,data[AKTIVITET],$I$8),NA()) ->  | J39: =IFERROR(AVERAGEIFS(data[KR/KM],data[DATO],G39,data[AKTIVITET],$J$8),NA()) -> 
F40: 31 | G40: 2012-05-31 | H40: =SUMIFS(data[KM],data[DATO],G40,data[AKTIVITET],$H$8) -> 0 | I40: =IFERROR(AVERAGEIFS(data[MPG],data[DATO],G40,data[AKTIVITET],$I$8),NA()) ->  | J40: =IFERROR(AVERAGEIFS(data[KR/KM],data[DATO],G40,data[AKTIVITET],$J$8),NA()) -> 
F41: 32 | G41: 2012-06-01 | H41: =SUMIFS(data[KM],data[DATO],G41,data[AKTIVITET],$H$8) -> 0 | I41: =IFERROR(AVERAGEIFS(data[MPG],data[DATO],G41,data[AKTIVITET],$I$8),NA()) ->  | J41: =IFERROR(AVERAGEIFS(data[KR/KM],data[DATO],G41,data[AKTIVITET],$J$8),NA()) -> 
F42: 33 | G42: 2012-06-02 | H42: =SUMIFS(data[KM],data[DATO],G42,data[AKTIVITET],$H$8) -> 0 | I42: =IFERROR(AVERAGEIFS(data[MPG],data[DATO],G42,data[AKTIVITET],$I$8),NA()) ->  | J42: =IFERROR(AVERAGEIFS(data[KR/KM],data[DATO],G42,data[AKTIVITET],$J$8),NA()) -> 
F43: 34 | G43: =G42+1 -> 2012-06-03 | H43: =SUMIFS(data[KM],data[DATO],G43,data[AKTIVITET],$H$8) -> 0 | I43: =IFERROR(AVERAGEIFS(data[MPG],data[DATO],G43,data[AKTIVITET],$I$8),NA()) ->  | J43: =IFERROR(AVERAGEIFS(data[KR/KM],data[DATO],G43,data[AKTIVITET],$J$8),NA()) -> 
F44: 35 | G44: 2012-06-04 | H44: =SUMIFS(data[KM],data[DATO],G44,data[AKTIVITET],$H$8) -> 0 | I44: =IFERROR(AVERAGEIFS(data[MPG],data[DATO],G44,data[AKTIVITET],$I$8),NA()) ->  | J44: =IFERROR(AVERAGEIFS(data[KR/KM],data[DATO],G44,data[AKTIVITET],$J$8),NA()) -> 
F45: 36 | G45: 2012-06-05 | H45: =SUMIFS(data[KM],data[DATO],G45,data[AKTIVITET],$H$8) -> 0 | I45: =IFERROR(AVERAGEIFS(data[MPG],data[DATO],G45,data[AKTIVITET],$I$8),NA()) ->  | J45: =IFERROR(AVERAGEIFS(data[KR/KM],data[DATO],G45,data[AKTIVITET],$J$8),NA()) -> 
F46: 37 | G46: 2012-06-06 | H46: =SUMIFS(data[KM],data[DATO],G46,data[AKTIVITET],$H$8) -> 0 | I46: =IFERROR(AVERAGEIFS(data[MPG],data[DATO],G46,data[AKTIVITET],$I$8),NA()) ->  | J46: =IFERROR(AVERAGEIFS(data[KR/KM],data[DATO],G46,data[AKTIVITET],$J$8),NA()) -> 
F47: 38 | G47: 2012-06-07 | H47: =SUMIFS(data[KM],data[DATO],G47,data[AKTIVITET],$H$8) -> 0 | I47: =IFERROR(AVERAGEIFS(data[MPG],data[DATO],G47,data[AKTIVITET],$I$8),NA()) ->  | J47: =IFERROR(AVERAGEIFS(data[KR/KM],data[DATO],G47,data[AKTIVITET],$J$8),NA()) -> 
F48: 39 | G48: 2012-06-08 | H48: =SUMIFS(data[KM],data[DATO],G48,data[AKTIVITET],$H$8) -> 0 | I48: =IFERROR(AVERAGEIFS(data[MPG],data[DATO],G48,data[AKTIVITET],$I$8),NA()) ->  | J48: =IFERROR(AVERAGEIFS(data[KR/KM],data[DATO],G48,data[AKTIVITET],$J$8),NA()) -> 
F49: 40 | G49: 2012-06-09 | H49: =SUMIFS(data[KM],data[DATO],G49,data[AKTIVITET],$H$8) -> 0 | I49: =IFERROR(AVERAGEIFS(data[MPG],data[DATO],G49,data[AKTIVITET],$I$8),NA()) ->  | J49: =IFERROR(AVERAGEIFS(data[KR/KM],data[DATO],G49,data[AKTIVITET],$J$8),NA()) -> 
F50: 41 | G50: 2012-06-10 | H50: =SUMIFS(data[KM],data[DATO],G50,data[AKTIVITET],$H$8) -> 0 | I50: =IFERROR(AVERAGEIFS(data[MPG],data[DATO],G50,data[AKTIVITET],$I$8),NA()) ->  | J50: =IFERROR(AVERAGEIFS(data[KR/KM],data[DATO],G50,data[AKTIVITET],$J$8),NA()) -> 
F51: 42 | G51: 2012-06-11 | H51: =SUMIFS(data[KM],data[DATO],G51,data[AKTIVITET],$H$8) -> 0 | I51: =IFERROR(AVERAGEIFS(data[MPG],data[DATO],G51,data[AKTIVITET],$I$8),NA()) ->  | J51: =IFERROR(AVERAGEIFS(data[KR/KM],data[DATO],G51,data[AKTIVITET],$J$8),NA()) -> 
F52: 43 | G52: 2012-06-12 | H52: =SUMIFS(data[KM],data[DATO],G52,data[AKTIVITET],$H$8) -> 0 | I52: =IFERROR(AVERAGEIFS(data[MPG],data[DATO],G52,data[AKTIVITET],$I$8),NA()) ->  | J52: =IFERROR(AVERAGEIFS(data[KR/KM],data[DATO],G52,data[AKTIVITET],$J$8),NA()) -> 
F53: 44 | G53: 2012-06-13 | H53: =SUMIFS(data[KM],data[DATO],G53,data[AKTIVITET],$H$8) -> 0 | I53: =IFERROR(AVERAGEIFS(data[MPG],data[DATO],G53,data[AKTIVITET],$I$8),NA()) ->  | J53: =IFERROR(AVERAGEIFS(data[KR/KM],data[DATO],G53,data[AKTIVITET],$J$8),NA()) -> 
F54: 45 | G54: 2012-06-14 | H54: =SUMIFS(data[KM],data[DATO],G54,data[AKTIVITET],$H$8) -> 0 | I54: =IFERROR(AVERAGEIFS(data[MPG],data[DATO],G54,data[AKTIVITET],$I$8),NA()) ->  | J54: =IFERROR(AVERAGEIFS(data[KR/KM],data[DATO],G54,data[AKTIVITET],$J$8),NA()) -> 
F55: 46 | G55: 2012-06-15 | H55: =SUMIFS(data[KM],data[DATO],G55,data[AKTIVITET],$H$8) -> 0 | I55: =IFERROR(AVERAGEIFS(data[MPG],data[DATO],G55,data[AKTIVITET],$I$8),NA()) ->  | J55: =IFERROR(AVERAGEIFS(data[KR/KM],data[DATO],G55,data[AKTIVITET],$J$8),NA()) -> 
F56: 47 | G56: 2012-06-16 | H56: =SUMIFS(data[KM],data[DATO],G56,data[AKTIVITET],$H$8) -> 0 | I56: =IFERROR(AVERAGEIFS(data[MPG],data[DATO],G56,data[AKTIVITET],$I$8),NA()) ->  | J56: =IFERROR(AVERAGEIFS(data[KR/KM],data[DATO],G56,data[AKTIVITET],$J$8),NA()) -> 
F57: 48 | G57: 2012-06-17 | H57: =SUMIFS(data[KM],data[DATO],G57,data[AKTIVITET],$H$8) -> 0 | I57: =IFERROR(AVERAGEIFS(data[MPG],data[DATO],G57,data[AKTIVITET],$I$8),NA()) ->  | J57: =IFERROR(AVERAGEIFS(data[KR/KM],data[DATO],G57,data[AKTIVITET],$J$8),NA()) -> 
F58: 49 | G58: 2012-06-18 | H58: =SUMIFS(data[KM],data[DATO],G58,data[AKTIVITET],$H$8) -> 0 | I58: =IFERROR(AVERAGEIFS(data[MPG],data[DATO],G58,data[AKTIVITET],$I$8),NA()) ->  | J58: =IFERROR(AVERAGEIFS(data[KR/KM],data[DATO],G58,data[AKTIVITET],$J$8),NA()) -> 
F59: 50 | G59: 2012-06-19 | H59: =SUMIFS(data[KM],data[DATO],G59,data[AKTIVITET],$H$8) -> 0 | I59: =IFERROR(AVERAGEIFS(data[MPG],data[DATO],G59,data[AKTIVITET],$I$8),NA()) ->  | J59: =IFERROR(AVERAGEIFS(data[KR/KM],data[DATO],G59,data[AKTIVITET],$J$8),NA()) -> 
F60: 51 | G60: 2012-06-20 | H60: =SUMIFS(data[KM],data[DATO],G60,data[AKTIVITET],$H$8) -> 0 | I60: =IFERROR(AVERAGEIFS(data[MPG],data[DATO],G60,data[AKTIVITET],$I$8),NA()) ->  | J60: =IFERROR(AVERAGEIFS(data[KR/KM],data[DATO],G60,data[AKTIVITET],$J$8),NA()) -> 
F61: 52 | G61: 2012-06-21 | H61: =SUMIFS(data[KM],data[DATO],G61,data[AKTIVITET],$H$8) -> 0 | I61: =IFERROR(AVERAGEIFS(data[MPG],data[DATO],G61,data[AKTIVITET],$I$8),NA()) ->  | J61: =IFERROR(AVERAGEIFS(data[KR/KM],data[DATO],G61,data[AKTIVITET],$J$8),NA()) -> 
F62: 53 | G62: 2012-06-22 | H62: =SUMIFS(data[KM],data[DATO],G62,data[AKTIVITET],$H$8) -> 0 | I62: =IFERROR(AVERAGEIFS(data[MPG],data[DATO],G62,data[AKTIVITET],$I$8),NA()) ->  | J62: =IFERROR(AVERAGEIFS(data[KR/KM],data[DATO],G62,data[AKTIVITET],$J$8),NA()) -> 
F63: 54 | G63: 2012-06-23 | H63: =SUMIFS(data[KM],data[DATO],G63,data[AKTIVITET],$H$8) -> 0 | I63: =IFERROR(AVERAGEIFS(data[MPG],data[DATO],G63,data[AKTIVITET],$I$8),NA()) ->  | J63: =IFERROR(AVERAGEIFS(data[KR/KM],data[DATO],G63,data[AKTIVITET],$J$8),NA()) -> 
F64: 55 | G64: 2012-06-24 | H64: =SUMIFS(data[KM],data[DATO],G64,data[AKTIVITET],$H$8) -> 0 | I64: =IFERROR(AVERAGEIFS(data[MPG],data[DATO],G64,data[AKTIVITET],$I$8),NA()) ->  | J64: =IFERROR(AVERAGEIFS(data[KR/KM],data[DATO],G64,data[AKTIVITET],$J$8),NA()) -> 
F65: 56 | G65: 2012-06-25 | H65: =SUMIFS(data[KM],data[DATO],G65,data[AKTIVITET],$H$8) -> 0 | I65: =IFERROR(AVERAGEIFS(data[MPG],data[DATO],G65,data[AKTIVITET],$I$8),NA()) ->  | J65: =IFERROR(AVERAGEIFS(data[KR/KM],data[DATO],G65,data[AKTIVITET],$J$8),NA()) -> 
F66: 57 | G66: 2012-06-26 | H66: =SUMIFS(data[KM],data[DATO],G66,data[AKTIVITET],$H$8) -> 0 | I66: =IFERROR(AVERAGEIFS(data[MPG],data[DATO],G66,data[AKTIVITET],$I$8),NA()) ->  | J66: =IFERROR(AVERAGEIFS(data[KR/KM],data[DATO],G66,data[AKTIVITET],$J$8),NA()) -> 
F67: 58 | G67: 2012-06-27 | H67: =SUMIFS(data[KM],data[DATO],G67,data[AKTIVITET],$H$8) -> 0 | I67: =IFERROR(AVERAGEIFS(data[MPG],data[DATO],G67,data[AKTIVITET],$I$8),NA()) ->  | J67: =IFERROR(AVERAGEIFS(data[KR/KM],data[DATO],G67,data[AKTIVITET],$J$8),NA()) -> 
F68: 59 | G68: 2012-06-28 | H68: =SUMIFS(data[KM],data[DATO],G68,data[AKTIVITET],$H$8) -> 0 | I68: =IFERROR(AVERAGEIFS(data[MPG],data[DATO],G68,data[AKTIVITET],$I$8),NA()) ->  | J68: =IFERROR(AVERAGEIFS(data[KR/KM],data[DATO],G68,data[AKTIVITET],$J$8),NA()) -> 
F69: 60 | G69: 2012-06-29 | H69: =SUMIFS(data[KM],data[DATO],G69,data[AKTIVITET],$H$8) -> 0 | I69: =IFERROR(AVERAGEIFS(data[MPG],data[DATO],G69,data[AKTIVITET],$I$8),NA()) ->  | J69: =IFERROR(AVERAGEIFS(data[KR/KM],data[DATO],G69,data[AKTIVITET],$J$8),NA()) -> 
